[Event "Late-Titled-Tuesday-Blitz-January-16-2024"]
[Site "Chess.com"]
[Date "2024.01.16"]
[Round "1"]
[White "youngdinousaur"]
[Black "bescmelasti"]
[Result "0-1"]
[WhiteElo "2347"]
[BlackElo "2659"]
[TimeControl "180+1"]
[EndTime "14:07:00 PST"]
[Termination "bescmelasti won by resignation"]

1. d4 {[%clk 0:03:00.9]} 1... Nf6 {[%clk 0:02:58.9]} 2. Nf3 {[%clk 0:03:00.4]}
2... e6 {[%clk 0:02:59.5]} 3. Bf4 {[%clk 0:03:00.4]} 3... c5 {[%clk 0:03:00.1]}
4. e3 {[%clk 0:03:00.9]} 4... cxd4 {[%clk 0:03:00.1]} 5. exd4 {[%clk 0:03:01.8]}
5... b6 {[%clk 0:03:00.7]} 6. c3 {[%clk 0:03:02]} 6... Be7 {[%clk 0:02:58.5]} 7.
Nbd2 {[%clk 0:03:02.2]} 7... O-O {[%clk 0:02:58]} 8. Bd3 {[%clk 0:03:02.5]} 8...
Ba6 {[%clk 0:02:58.2]} 9. Qe2 {[%clk 0:03:01.1]} 9... Bxd3 {[%clk 0:02:57.9]}
10. Qxd3 {[%clk 0:03:02]} 10... d6 {[%clk 0:02:54.8]} 11. O-O {[%clk 0:03:01.7]}
11... Nbd7 {[%clk 0:02:55.3]} 12. Rfe1 {[%clk 0:03:01.2]} 12... a6 {[%clk
0:02:50.7]} 13. Rad1 {[%clk 0:03:00.6]} 13... b5 {[%clk 0:02:49.5]} 14. Nf1
{[%clk 0:02:51.7]} 14... Qc7 {[%clk 0:02:47.8]} 15. Qe2 {[%clk 0:02:37.5]} 15...
Rfe8 {[%clk 0:02:43.8]} 16. Ng3 {[%clk 0:02:36.6]} 16... Rab8 {[%clk 0:02:41.4]}
17. a3 {[%clk 0:02:35.2]} 17... Qc4 {[%clk 0:02:38.3]} 18. h4 {[%clk 0:02:28]}
18... Qxe2 {[%clk 0:02:37.4]} 19. Rxe2 {[%clk 0:02:28.9]} 19... h6 {[%clk
0:02:33.7]} 20. h5 {[%clk 0:02:25]} 20... a5 {[%clk 0:02:31.8]} 21. Rde1 {[%clk
0:02:20.6]} 21... Bf8 {[%clk 0:02:27.8]} 22. Nd2 {[%clk 0:02:12.3]} 22... Rec8
{[%clk 0:02:25.9]} 23. Nge4 {[%clk 0:01:58.8]} 23... Nxe4 {[%clk 0:02:24.4]} 24.
Rxe4 {[%clk 0:01:57.9]} 24... Nf6 {[%clk 0:02:11.2]} 25. R4e2 {[%clk 0:01:49.8]}
25... Nxh5 {[%clk 0:02:11]} 26. Bh2 {[%clk 0:01:49.6]} 26... Nf6 {[%clk
0:02:10.9]} 27. f3 {[%clk 0:01:49.1]} 27... Rb7 {[%clk 0:02:09]} 28. g4 {[%clk
0:01:48.1]} 28... Nd5 {[%clk 0:02:01.7]} 29. Kg2 {[%clk 0:01:39.4]} 29... Nb6
{[%clk 0:01:57.2]} 30. Ne4 {[%clk 0:01:32]} 30... d5 {[%clk 0:01:57.1]} 31. Nd6
{[%clk 0:01:14.5]} 31... Bxd6 {[%clk 0:01:56.2]} 32. Bxd6 {[%clk 0:01:15.4]}
32... Nc4 {[%clk 0:01:56.4]} 33. Bc5 {[%clk 0:01:15.2]} 33... Rc6 {[%clk
0:01:47.9]} 34. Kg3 {[%clk 0:01:14.3]} 34... Nd6 {[%clk 0:01:46.4]} 35. Kf4
{[%clk 0:01:06.7]} 35... Rd7 {[%clk 0:01:42.4]} 36. Rh1 {[%clk 0:01:05.3]} 36...
Nb7 {[%clk 0:01:41.2]} 37. b4 {[%clk 0:01:02]} 37... f6 {[%clk 0:01:40.5]} 38.
Rhe1 {[%clk 0:00:55.6]} 38... Kf7 {[%clk 0:01:40.6]} 39. Kg3 {[%clk 0:00:51.7]}
39... Nxc5 {[%clk 0:01:40.6]} 40. bxc5 {[%clk 0:00:47.7]} 40... Rb7 {[%clk
0:01:41]} 41. Rb1 {[%clk 0:00:46.1]} 41... Rc8 {[%clk 0:01:40.5]} 42. Reb2
{[%clk 0:00:45.5]} 42... Rcb8 {[%clk 0:01:40.6]} 43. a4 {[%clk 0:00:20.3]} 43...
b4 {[%clk 0:01:37.7]} 44. cxb4 {[%clk 0:00:20.3]} 44... Rxb4 {[%clk 0:01:37.2]}
45. Rxb4 {[%clk 0:00:16.6]} 45... Rxb4 {[%clk 0:01:37.5]} 46. Rc1 {[%clk
0:00:16.3]} 46... Ke7 {[%clk 0:01:35.6]} 47. c6 {[%clk 0:00:13.5]} 47... Kd8
{[%clk 0:01:35.8]} 48. Rc5 {[%clk 0:00:11]} 48... Rxa4 {[%clk 0:01:35.4]} 49.
Kf2 {[%clk 0:00:10.4]} 49... Kc7 {[%clk 0:01:31.7]} 50. Ke3 {[%clk 0:00:10.3]}
50... Ra3+ {[%clk 0:01:28.3]} 51. Kf4 {[%clk 0:00:10]} 51... Rd3 {[%clk
0:01:28.2]} 52. Rxa5 {[%clk 0:00:09.6]} 52... Kxc6 {[%clk 0:01:28.3]} 53. Ra4
{[%clk 0:00:07.4]} 53... Rxd4+ {[%clk 0:01:26.5]} 54. Rxd4 {[%clk 0:00:06.9]}
54... e5+ {[%clk 0:01:27.2]} 55. Ke3 {[%clk 0:00:07.8]} 55... exd4+ {[%clk
0:01:28.1]} 56. Kxd4 {[%clk 0:00:08.7]} 56... g5 {[%clk 0:01:27.3]} 57. Kd3
{[%clk 0:00:06.1]} 57... Kc5 {[%clk 0:01:27.6]} 58. Kc3 {[%clk 0:00:06.6]} 58...
d4+ {[%clk 0:01:28.2]} 59. Kd3 {[%clk 0:00:07.5]} 59... Kd5 {[%clk 0:01:29]} 0-1

[Event "Late-Titled-Tuesday-Blitz-January-16-2024"]
[Site "Chess.com"]
[Date "2024.01.16"]
[Round "1"]
[White "Heretoflag"]
[Black "SchmakAttack"]
[Result "0-1"]
[WhiteElo "2384"]
[BlackElo "2707"]
[TimeControl "180+1"]
[EndTime "14:07:01 PST"]
[Termination "SchmakAttack won on time"]

1. d4 {[%clk 0:03:00.1]} 1... d5 {[%clk 0:02:57.1]} 2. c4 {[%clk 0:02:59.3]}
2... e6 {[%clk 0:02:57]} 3. Nc3 {[%clk 0:02:58.1]} 3... Bb4 {[%clk 0:02:56.7]}
4. cxd5 {[%clk 0:02:53.1]} 4... exd5 {[%clk 0:02:55.8]} 5. Nf3 {[%clk
0:02:50.1]} 5... Nf6 {[%clk 0:02:53.2]} 6. Bg5 {[%clk 0:02:49.5]} 6... h6 {[%clk
0:02:50.7]} 7. Bh4 {[%clk 0:02:49.1]} 7... Bf5 {[%clk 0:02:50.3]} 8. e3 {[%clk
0:02:46.1]} 8... g5 {[%clk 0:02:22.5]} 9. Bg3 {[%clk 0:02:45.2]} 9... Ne4 {[%clk
0:02:22.9]} 10. Rc1 {[%clk 0:02:31.7]} 10... O-O {[%clk 0:02:22.6]} 11. Bd3
{[%clk 0:02:14.3]} 11... c5 {[%clk 0:02:21.9]} 12. dxc5 {[%clk 0:02:07.9]} 12...
Nd7 {[%clk 0:02:14.5]} 13. O-O {[%clk 0:02:00.3]} 13... Bxc3 {[%clk 0:02:11.8]}
14. bxc3 {[%clk 0:01:58]} 14... Ndxc5 {[%clk 0:02:11.3]} 15. Bb1 {[%clk
0:01:51.8]} 15... Rc8 {[%clk 0:02:09.7]} 16. c4 {[%clk 0:01:39.5]} 16... Nxg3
{[%clk 0:02:03.2]} 17. hxg3 {[%clk 0:01:28.4]} 17... Bxb1 {[%clk 0:02:03.1]} 18.
Rxb1 {[%clk 0:01:22.8]} 18... dxc4 {[%clk 0:02:03.2]} 19. Qc2 {[%clk 0:01:13.7]}
19... Qd5 {[%clk 0:01:36.1]} 20. Rfd1 {[%clk 0:01:10.7]} 20... Nd3 {[%clk
0:01:35.5]} 21. a4 {[%clk 0:00:52.6]} 21... a6 {[%clk 0:01:06.1]} 22. Rb6 {[%clk
0:00:42.8]} 22... Kg7 {[%clk 0:01:00]} 23. Rdb1 {[%clk 0:00:38.8]} 23... Rc7
{[%clk 0:00:59.9]} 24. Qc3+ {[%clk 0:00:33.1]} 24... f6 {[%clk 0:00:57.6]} 25.
Nd4 {[%clk 0:00:31.9]} 25... Re8 {[%clk 0:00:52.6]} 26. g4 {[%clk 0:00:31]}
26... Kg6 {[%clk 0:00:51.6]} 27. Nb5 {[%clk 0:00:14.9]} 27... Rc6 {[%clk
0:00:51.6]} 28. Nd4 {[%clk 0:00:09.9]} 28... Rxb6 {[%clk 0:00:44.1]} 29. Rxb6
{[%clk 0:00:10.8]} 29... Ne5 {[%clk 0:00:44.4]} 30. Nf5 {[%clk 0:00:07.9]} 30...
Qd1+ {[%clk 0:00:40.2]} 31. Kh2 {[%clk 0:00:07.1]} 31... Nxg4+ {[%clk
0:00:26.6]} 32. Kg3 {[%clk 0:00:07]} 32... Kxf5 {[%clk 0:00:27.1]} 0-1

[Event "Late-Titled-Tuesday-Blitz-January-16-2024"]
[Site "Chess.com"]
[Date "2024.01.16"]
[Round "1"]
[White "iturrizaga"]
[Black "Good_Knight_Kiss"]
[Result "1/2-1/2"]
[WhiteElo "3015"]
[BlackElo "2523"]
[TimeControl "180+1"]
[EndTime "14:07:02 PST"]
[Termination "Game drawn by repetition"]

1. c4 {[%clk 0:02:56]} 1... Nf6 {[%clk 0:02:59.6]} 2. g3 {[%clk 0:02:55.4]} 2...
g6 {[%clk 0:02:59.7]} 3. Bg2 {[%clk 0:02:55.5]} 3... Bg7 {[%clk 0:03:00.2]} 4.
Nc3 {[%clk 0:02:54.7]} 4... d6 {[%clk 0:03:00.7]} 5. d4 {[%clk 0:02:55]} 5...
O-O {[%clk 0:03:00.8]} 6. Nf3 {[%clk 0:02:54.8]} 6... Nbd7 {[%clk 0:03:01]} 7.
O-O {[%clk 0:02:53.2]} 7... e5 {[%clk 0:03:01]} 8. Qc2 {[%clk 0:02:51.7]} 8...
c6 {[%clk 0:02:52.6]} 9. Rd1 {[%clk 0:02:51.3]} 9... Qe7 {[%clk 0:02:52.3]} 10.
b3 {[%clk 0:02:40.6]} 10... Re8 {[%clk 0:02:32]} 11. Ba3 {[%clk 0:02:38.5]}
11... e4 {[%clk 0:02:31.1]} 12. Ng5 {[%clk 0:02:38.6]} 12... e3 {[%clk
0:02:30.8]} 13. f3 {[%clk 0:02:38.5]} 13... a6 {[%clk 0:01:40.4]} 14. Nge4
{[%clk 0:02:33.4]} 14... Nxe4 {[%clk 0:01:36.5]} 15. Nxe4 {[%clk 0:02:33.3]}
15... c5 {[%clk 0:01:36.4]} 16. dxc5 {[%clk 0:02:33.6]} 16... dxc5 {[%clk
0:01:30]} 17. Bb2 {[%clk 0:02:27.9]} 17... Nf6 {[%clk 0:01:21]} 18. Qc3 {[%clk
0:01:45.2]} 18... Nh5 {[%clk 0:01:14.4]} 19. Qc1 {[%clk 0:01:45.1]} 19... Nf6
{[%clk 0:00:54.4]} 20. Nc3 {[%clk 0:01:41.2]} 20... Bf5 {[%clk 0:00:43.7]} 21.
g4 {[%clk 0:01:35.4]} 21... Bxg4 {[%clk 0:00:32.7]} 22. fxg4 {[%clk 0:01:33.9]}
22... Nxg4 {[%clk 0:00:33.6]} 23. h3 {[%clk 0:01:20.8]} 23... Nf2 {[%clk
0:00:28.3]} 24. Nd5 {[%clk 0:01:16.1]} 24... Qh4 {[%clk 0:00:21.3]} 25. Bxg7
{[%clk 0:01:15]} 25... Nxh3+ {[%clk 0:00:11.4]} 26. Bxh3 {[%clk 0:01:05.9]}
26... Qxh3 {[%clk 0:00:11.8]} 27. Nf6+ {[%clk 0:00:21.1]} 27... Kxg7 {[%clk
0:00:11.2]} 28. Nxe8+ {[%clk 0:00:22]} 28... Rxe8 {[%clk 0:00:10.3]} 29. Qc3+
{[%clk 0:00:22.6]} 29... Kg8 {[%clk 0:00:06.3]} 30. Qf6 {[%clk 0:00:20.9]} 30...
Qg3+ {[%clk 0:00:02.2]} 31. Kf1 {[%clk 0:00:19.4]} 31... Qh3+ {[%clk 0:00:01.8]}
32. Kg1 {[%clk 0:00:20]} 32... Qg3+ {[%clk 0:00:02]} 33. Kh1 {[%clk 0:00:19.4]}
33... Qh3+ {[%clk 0:00:02.4]} 34. Kg1 {[%clk 0:00:20]} 1/2-1/2

[Event "Late-Titled-Tuesday-Blitz-January-16-2024"]
[Site "Chess.com"]
[Date "2024.01.16"]
[Round "1"]
[White "The_Machine04"]
[Black "Chessbard1972"]
[Result "1/2-1/2"]
[WhiteElo "2706"]
[BlackElo "2404"]
[TimeControl "180+1"]
[EndTime "14:07:02 PST"]
[Termination "Game drawn by repetition"]

1. d4 {[%clk 0:03:00.9]} 1... d5 {[%clk 0:02:54.7]} 2. Nf3 {[%clk 0:03:00.8]}
2... c5 {[%clk 0:02:54]} 3. e3 {[%clk 0:03:01]} 3... Nf6 {[%clk 0:02:52.7]} 4.
c3 {[%clk 0:03:00.9]} 4... Nc6 {[%clk 0:02:51.6]} 5. Nbd2 {[%clk 0:03:01.2]}
5... e6 {[%clk 0:02:48.7]} 6. Bd3 {[%clk 0:03:00.9]} 6... Bd6 {[%clk 0:02:48.4]}
7. O-O {[%clk 0:03:01.3]} 7... e5 {[%clk 0:02:46.2]} 8. dxe5 {[%clk 0:03:01.4]}
8... Nxe5 {[%clk 0:02:46.4]} 9. Nxe5 {[%clk 0:03:02.1]} 9... Bxe5 {[%clk
0:02:46.7]} 10. e4 {[%clk 0:03:02.8]} 10... O-O {[%clk 0:02:45.1]} 11. exd5
{[%clk 0:03:01.6]} 11... Qxd5 {[%clk 0:02:44.7]} 12. Nf3 {[%clk 0:03:01.9]}
12... Bg4 {[%clk 0:02:37.1]} 13. Be2 {[%clk 0:03:02]} 13... Bc7 {[%clk
0:02:27.9]} 14. h3 {[%clk 0:02:54.1]} 14... Bh5 {[%clk 0:02:25.8]} 15. Qxd5
{[%clk 0:02:50.6]} 15... Nxd5 {[%clk 0:02:25]} 16. Rd1 {[%clk 0:02:51.3]} 16...
Rad8 {[%clk 0:02:21.4]} 17. Bg5 {[%clk 0:02:49.9]} 17... f6 {[%clk 0:02:18]} 18.
Bc4 {[%clk 0:02:43.2]} 18... Bf7 {[%clk 0:02:17.5]} 19. Be3 {[%clk 0:02:37.5]}
19... b6 {[%clk 0:02:15.2]} 20. a4 {[%clk 0:02:34.3]} 20... Nxe3 {[%clk
0:02:12.3]} 21. Bxf7+ {[%clk 0:02:33.7]} 21... Kxf7 {[%clk 0:02:11.9]} 22. fxe3
{[%clk 0:02:34.3]} 22... Bg3 {[%clk 0:02:08.2]} 23. Kf1 {[%clk 0:02:33.6]} 23...
Ke7 {[%clk 0:02:04.9]} 24. Ke2 {[%clk 0:02:33.1]} 24... Rxd1 {[%clk 0:02:03.6]}
25. Rxd1 {[%clk 0:02:34]} 25... Rd8 {[%clk 0:02:03.2]} 26. Rxd8 {[%clk
0:02:33.3]} 26... Kxd8 {[%clk 0:02:03.6]} 27. Kd3 {[%clk 0:02:33.7]} 27... Kd7
{[%clk 0:01:59.9]} 28. Kc4 {[%clk 0:02:33.2]} 28... Kc6 {[%clk 0:01:59.9]} 29.
b4 {[%clk 0:02:27.1]} 29... cxb4 {[%clk 0:01:59.3]} 30. cxb4 {[%clk 0:02:28]}
30... a6 {[%clk 0:01:58.9]} 31. Nd4+ {[%clk 0:02:26.3]} 31... Kd7 {[%clk
0:01:48.6]} 32. Kd5 {[%clk 0:02:17.3]} 32... Bf2 {[%clk 0:01:45.5]} 33. Nc2
{[%clk 0:02:15.4]} 33... g6 {[%clk 0:01:37.3]} 34. e4 {[%clk 0:02:14.6]} 34...
b5 {[%clk 0:01:24.3]} 35. axb5 {[%clk 0:02:11.7]} 35... axb5 {[%clk 0:01:22.7]}
36. Na3 {[%clk 0:02:12]} 36... Be1 {[%clk 0:01:17.6]} 37. Kc5 {[%clk 0:02:12.2]}
37... Ke6 {[%clk 0:01:17.4]} 38. Nc2 {[%clk 0:01:35.3]} 38... Bf2+ {[%clk
0:01:15.2]} 39. Kxb5 {[%clk 0:01:34.6]} 39... Ke5 {[%clk 0:01:15.5]} 40. Kc6
{[%clk 0:01:34]} 40... Kxe4 {[%clk 0:01:15.5]} 41. b5 {[%clk 0:01:33.5]} 41...
Kf4 {[%clk 0:01:02.4]} 42. Nb4 {[%clk 0:01:30.7]} 42... Kg3 {[%clk 0:00:58.5]}
43. Nd3 {[%clk 0:01:29.5]} 43... Ba7 {[%clk 0:00:53.8]} 44. Kb7 {[%clk
0:01:21.8]} 44... Bd4 {[%clk 0:00:51.2]} 45. Ne1 {[%clk 0:01:08.8]} 45... Kf2
{[%clk 0:00:49.4]} 46. Nc2 {[%clk 0:01:01.9]} 46... Bc5 {[%clk 0:00:45.2]} 47.
Kc6 {[%clk 0:01:01.5]} 47... Ba7 {[%clk 0:00:43.8]} 48. Kb7 {[%clk 0:00:59.8]}
48... Bc5 {[%clk 0:00:41.9]} 49. Kc6 {[%clk 0:01:00.3]} 49... Ba7 {[%clk
0:00:41.6]} 50. Kb7 {[%clk 0:00:21.2]} 50... Bc5 {[%clk 0:00:38.8]} 1/2-1/2

[Event "Late-Titled-Tuesday-Blitz-January-16-2024"]
[Site "Chess.com"]
[Date "2024.01.16"]
[Round "1"]
[White "TEREZANA"]
[Black "AryanTari"]
[Result "1-0"]
[WhiteElo "2518"]
[BlackElo "2915"]
[TimeControl "180+1"]
[EndTime "14:07:04 PST"]
[Termination "TEREZANA won by resignation"]

1. d4 {[%clk 0:03:00.1]} 1... a6 {[%clk 0:02:54.9]} 2. Nf3 {[%clk 0:03:00.1]}
2... e6 {[%clk 0:02:52.9]} 3. e4 {[%clk 0:02:56.4]} 3... d5 {[%clk 0:02:52.7]}
4. Nbd2 {[%clk 0:02:49.8]} 4... c5 {[%clk 0:02:49.8]} 5. c3 {[%clk 0:02:46.7]}
5... cxd4 {[%clk 0:02:36.9]} 6. cxd4 {[%clk 0:02:45.3]} 6... dxe4 {[%clk
0:02:34.6]} 7. Nxe4 {[%clk 0:02:45.9]} 7... Nc6 {[%clk 0:02:33.7]} 8. Bd3 {[%clk
0:02:42.8]} 8... Bb4+ {[%clk 0:02:04.2]} 9. Nc3 {[%clk 0:02:27.1]} 9... Nf6
{[%clk 0:01:59.7]} 10. O-O {[%clk 0:02:22.1]} 10... O-O {[%clk 0:01:59.1]} 11.
Bg5 {[%clk 0:02:15.8]} 11... Be7 {[%clk 0:01:58.5]} 12. Qe2 {[%clk 0:02:07.8]}
12... b5 {[%clk 0:01:52.7]} 13. Bxf6 {[%clk 0:02:00]} 13... Bxf6 {[%clk
0:01:51.9]} 14. Qe4 {[%clk 0:02:00.2]} 14... g6 {[%clk 0:01:52.2]} 15. Qxc6
{[%clk 0:02:00.2]} 15... Rb8 {[%clk 0:01:51.8]} 16. Ne4 {[%clk 0:01:50.5]} 16...
Bb7 {[%clk 0:01:49.5]} 17. Qc5 {[%clk 0:01:50.8]} 17... Bg7 {[%clk 0:01:45.6]}
18. Rfe1 {[%clk 0:01:48.1]} 18... Rc8 {[%clk 0:01:36.9]} 19. Qg5 {[%clk
0:01:17.7]} 19... Qxg5 {[%clk 0:01:17.7]} 20. Nexg5 {[%clk 0:01:15.2]} 20...
Rfd8 {[%clk 0:01:17.7]} 21. Rad1 {[%clk 0:01:12.1]} 21... h6 {[%clk 0:01:14.3]}
22. Be4 {[%clk 0:01:01.6]} 22... hxg5 {[%clk 0:01:09.4]} 23. Bxb7 {[%clk
0:01:00.4]} 23... Rc2 {[%clk 0:01:10.3]} 24. h3 {[%clk 0:00:45.2]} 24... Rxb2
{[%clk 0:01:07.7]} 25. d5 {[%clk 0:00:44.4]} 25... exd5 {[%clk 0:01:03]} 26.
Rxd5 {[%clk 0:00:44.8]} 26... Rxd5 {[%clk 0:01:01.2]} 27. Bxd5 {[%clk
0:00:45.7]} 27... Bf6 {[%clk 0:01:01.2]} 28. Rc1 {[%clk 0:00:42.2]} 28... Be7
{[%clk 0:00:55]} 29. g3 {[%clk 0:00:39.1]} 29... a5 {[%clk 0:00:48.5]} 30. Rc7
{[%clk 0:00:35]} 30... Kf8 {[%clk 0:00:48.9]} 31. Ne5 {[%clk 0:00:32.2]} 31...
Rd2 {[%clk 0:00:49.1]} 32. Bxf7 {[%clk 0:00:28.9]} 32... Bd6 {[%clk 0:00:49.3]}
33. Rd7 {[%clk 0:00:25.8]} 33... Bxe5 {[%clk 0:00:39.2]} 34. Rxd2 {[%clk
0:00:26.7]} 34... Kxf7 {[%clk 0:00:39.9]} 35. Rd5 {[%clk 0:00:25.8]} 35... Ke6
{[%clk 0:00:40.2]} 36. Rxb5 {[%clk 0:00:25.9]} 36... a4 {[%clk 0:00:40.1]} 37.
Kg2 {[%clk 0:00:21.6]} 37... a3 {[%clk 0:00:40.2]} 38. Kf3 {[%clk 0:00:21.3]}
38... Kf6 {[%clk 0:00:39.6]} 39. Ke4 {[%clk 0:00:20.7]} 39... Bb2 {[%clk
0:00:39.7]} 40. Rb6+ {[%clk 0:00:20.6]} 40... Kg7 {[%clk 0:00:40.2]} 41. g4
{[%clk 0:00:17.4]} 41... Bc3 {[%clk 0:00:39.6]} 42. Kd3 {[%clk 0:00:17.5]} 42...
Bb2 {[%clk 0:00:38.6]} 43. Rxb2 {[%clk 0:00:16.8]} 43... axb2 {[%clk 0:00:39]}
44. Kc2 {[%clk 0:00:17.6]} 44... Kf6 {[%clk 0:00:39]} 45. Kxb2 {[%clk
0:00:18.2]} 45... Ke6 {[%clk 0:00:39.7]} 46. a4 {[%clk 0:00:18.4]} 46... Kd6
{[%clk 0:00:40.6]} 47. Kc3 {[%clk 0:00:19]} 47... Kc5 {[%clk 0:00:38.4]} 48. Kd3
{[%clk 0:00:18.6]} 1-0

[Event "Late-Titled-Tuesday-Blitz-January-16-2024"]
[Site "Chess.com"]
[Date "2024.01.16"]
[Round "1"]
[White "hsd2016"]
[Black "AradNazari"]
[Result "0-1"]
[WhiteElo "2276"]
[BlackElo "2624"]
[TimeControl "180+1"]
[EndTime "14:07:05 PST"]
[Termination "AradNazari won by checkmate"]

1. e4 {[%clk 0:03:00.3]} 1... g5 {[%clk 0:03:00]} 2. d3 {[%clk 0:02:59.6]} 2...
h6 {[%clk 0:02:59.2]} 3. h4 {[%clk 0:02:59.6]} 3... gxh4 {[%clk 0:02:58]} 4. Nf3
{[%clk 0:02:59.8]} 4... h3 {[%clk 0:02:57.4]} 5. Rxh3 {[%clk 0:03:00.1]} 5... d5
{[%clk 0:02:57.8]} 6. Rh1 {[%clk 0:03:00.1]} 6... dxe4 {[%clk 0:02:58.1]} 7.
dxe4 {[%clk 0:03:01]} 7... Qxd1+ {[%clk 0:02:58.6]} 8. Kxd1 {[%clk 0:03:01.9]}
8... Nf6 {[%clk 0:02:59.3]} 9. Nbd2 {[%clk 0:03:00.6]} 9... Nc6 {[%clk
0:02:57.7]} 10. c3 {[%clk 0:02:59.6]} 10... e5 {[%clk 0:02:53.7]} 11. Bb5 {[%clk
0:02:59.2]} 11... Ng4 {[%clk 0:02:54.2]} 12. Ke2 {[%clk 0:02:57.6]} 12... Bc5
{[%clk 0:02:53.6]} 13. Nb3 {[%clk 0:02:43.6]} 13... Bb6 {[%clk 0:02:30.5]} 14.
c4 {[%clk 0:02:22.1]} 14... Bxf2 {[%clk 0:02:25.6]} 15. Bd2 {[%clk 0:01:57.1]}
15... Bg3 {[%clk 0:02:14.9]} 16. Bc3 {[%clk 0:01:53.4]} 16... f6 {[%clk
0:02:04.9]} 17. Nc5 {[%clk 0:01:26.5]} 17... Kf7 {[%clk 0:01:28]} 18. Rh3 {[%clk
0:00:58.7]} 18... Bf4 {[%clk 0:00:59.8]} 19. Rf1 {[%clk 0:00:54.5]} 19... Ne3
{[%clk 0:00:52.9]} 20. Bxc6 {[%clk 0:00:42.7]} 20... bxc6 {[%clk 0:00:50.5]} 21.
Nxe5+ {[%clk 0:00:42.4]} 21... fxe5 {[%clk 0:00:48.6]} 22. Rxe3 {[%clk
0:00:41.2]} 22... Bg4+ {[%clk 0:00:46.7]} 23. Ke1 {[%clk 0:00:35.1]} 23... Ke7
{[%clk 0:00:31.7]} 24. Rd3 {[%clk 0:00:34.3]} 24... Rhd8 {[%clk 0:00:30.9]} 25.
Rg1 {[%clk 0:00:16.9]} 25... h5 {[%clk 0:00:22.7]} 26. g3 {[%clk 0:00:13.7]}
26... Rxd3 {[%clk 0:00:14]} 27. Nxd3 {[%clk 0:00:14.6]} 27... Be3 {[%clk
0:00:14.5]} 28. Rf1 {[%clk 0:00:14]} 28... Rd8 {[%clk 0:00:14.8]} 29. Nf2 {[%clk
0:00:06]} 29... Bf3 {[%clk 0:00:12.5]} 30. Bxe5 {[%clk 0:00:05.4]} 30... Bd2#
{[%clk 0:00:11.5]} 0-1

[Event "Late-Titled-Tuesday-Blitz-January-16-2024"]
[Site "Chess.com"]
[Date "2024.01.16"]
[Round "1"]
[White "crazy_but_lazy"]
[Black "SuanFernandes"]
[Result "1-0"]
[WhiteElo "2586"]
[BlackElo "2239"]
[TimeControl "180+1"]
[EndTime "14:07:06 PST"]
[Termination "crazy_but_lazy won on time"]

1. e4 {[%clk 0:02:55.2]} 1... c6 {[%clk 0:03:00.2]} 2. d4 {[%clk 0:02:55.2]}
2... d5 {[%clk 0:03:00.9]} 3. exd5 {[%clk 0:02:56.1]} 3... cxd5 {[%clk
0:03:01.8]} 4. Bd3 {[%clk 0:02:56.7]} 4... Nc6 {[%clk 0:02:57.2]} 5. c3 {[%clk
0:02:57]} 5... Nf6 {[%clk 0:02:57.8]} 6. Bf4 {[%clk 0:02:55.9]} 6... Bg4 {[%clk
0:02:57.6]} 7. Qb3 {[%clk 0:02:55.5]} 7... Qd7 {[%clk 0:02:57.9]} 8. Nd2 {[%clk
0:02:54.9]} 8... e6 {[%clk 0:02:57.1]} 9. Ngf3 {[%clk 0:02:55.2]} 9... Bd6
{[%clk 0:02:56.7]} 10. Bxd6 {[%clk 0:02:54.8]} 10... Qxd6 {[%clk 0:02:57.2]} 11.
O-O {[%clk 0:02:55.2]} 11... O-O {[%clk 0:02:57.1]} 12. Rae1 {[%clk 0:02:55.4]}
12... a6 {[%clk 0:02:41.8]} 13. Ne5 {[%clk 0:02:54.7]} 13... b5 {[%clk
0:02:40.7]} 14. a3 {[%clk 0:02:33.4]} 14... Rab8 {[%clk 0:02:17.1]} 15. Re3
{[%clk 0:02:14.5]} 15... Qc7 {[%clk 0:02:10.3]} 16. Rfe1 {[%clk 0:02:09.7]}
16... Nxe5 {[%clk 0:01:50.4]} 17. Rxe5 {[%clk 0:02:01.3]} 17... Bh5 {[%clk
0:01:38.8]} 18. R5e3 {[%clk 0:01:09.1]} 18... Bg6 {[%clk 0:01:38.2]} 19. Bxg6
{[%clk 0:01:09]} 19... hxg6 {[%clk 0:01:39.1]} 20. Qd1 {[%clk 0:01:07.6]} 20...
a5 {[%clk 0:01:22.9]} 21. b4 {[%clk 0:00:55.9]} 21... Rfc8 {[%clk 0:01:14.7]}
22. Nb3 {[%clk 0:00:52.5]} 22... Ne4 {[%clk 0:00:58.9]} 23. Nc5 {[%clk
0:00:52.6]} 23... Nxc5 {[%clk 0:00:55.5]} 24. dxc5 {[%clk 0:00:53.5]} 24... Ra8
{[%clk 0:00:44.3]} 25. Qd4 {[%clk 0:00:46.1]} 25... Qe7 {[%clk 0:00:38]} 26.
Qxd5 {[%clk 0:00:39]} 26... Qf6 {[%clk 0:00:28.4]} 27. Qb7 {[%clk 0:00:26.6]}
27... Rcb8 {[%clk 0:00:17.5]} 28. Qd7 {[%clk 0:00:23.6]} 28... axb4 {[%clk
0:00:15.2]} 29. axb4 {[%clk 0:00:24.5]} 29... Ra3 {[%clk 0:00:13.8]} 30. Rf3
{[%clk 0:00:18]} 30... Rd8 {[%clk 0:00:01.2]} 31. Qxb5 {[%clk 0:00:17.5]} 1-0